bitfinex-derivatives/quotes_ETHF0:USTF0_20250308
["timestamp","ask_amount","ask_price","bid_price","bid_amount"]
[1741455593894,2.37978549,2211.4,2211.0,1.81408]
[1741455594195,2.37978549,2211.4,2211.0,1.2712]
[1741455594698,2.92258549,2211.4,2211.0,1.2712]
[1741455595789,0.54282,2211.3,2211.0,1.2712]
[1741455596299,2.92258549,2211.4,2211.0,1.2712]
[1741455600594,2.37978549,2211.4,2211.0,1.2712]
[1741455600795,2.92258549,2211.4,2211.0,1.2712]
[1741455600995,0.00678549,2211.4,2211.0,1.2712]
[1741455601191,2.373,2211.8,2211.3,3.2078]
[1741455601499,18.454,2212.1,2211.7,3.2078]
[1741455601894,18.454,2212.1,2211.4,0.54279]
[1741455602097,18.454,2212.1,2211.3,3.2078]
[1741455602098,3.2078,2211.9,2211.3,3.2078]
[1741455602295,0.54274,2211.7,2211.3,3.2078]
[1741455602493,2.37975945,2211.8,2211.3,3.2078]
[1741455602699,0.54272,2211.7,2211.3,3.2078]
[1741455602998,2.37975945,2211.8,2211.3,3.2078]
[1741455603195,3.2078,2211.6,2211.3,3.2078]
[1741455603394,0.54279,2211.4,2211.3,3.2078]
[1741455603595,0.54283,2211.3,2211.0,1.2712]
[1741455603997,2.9158,2211.4,2211.0,1.81409]
[1741455604297,2.91581,2211.4,2211.0,1.2712]
[1741455604895,1.3702,2211.5,2211.0,1.2712]
[1741455605098,2.373,2211.4,2211.0,1.2712]
[1741455605298,2.9158,2211.4,2211.0,1.2712]
[1741455605592,0.54284,2211.3,2210.9,3.21458549]
[1741455606397,0.54289,2211.0,2210.9,0.00678549]
[1741455606703,2.91589,2211.0,2210.9,0.00678549]
[1741455606891,2.373,2211.0,2210.9,0.00678549]
[1741455608000,2.373,2211.0,2210.9,1.27448549]
[1741455608800,2.373,2211.0,2210.9,1.81739549]
[1741455609101,0.00675945,2211.8,2211.3,0.54281]
[1741455609302,0.00675945,2211.8,2211.4,3.2078]
[1741455609495,2.373,2211.7,2211.4,3.2078]
[1741455609691,2.373,2211.7,2211.5,1.3004]
[1741455611897,2.373,2211.7,2211.5,1.84316]
[1741455612102,2.373,2211.7,2211.6,0.54274]
[1741455612299,0.00675945,2211.8,2211.7,0.54272]
[1741455612600,4.18022013,2212.8,2212.1,0.54262]
[1741455612601,3.2078,2212.5,2212.1,0.54262]
[1741455612802,2.372,2212.4,2212.1,3.75042]
[1741455612997,2.372,2212.4,2212.1,3.2078]
[1741455613199,3.2078,2212.5,2212.2,1.93387]
[1741455613708,3.2078,2212.5,2212.3,0.54257]
[1741455614104,3.2078,2212.5,2212.2,2.6573]
[1741455614307,4.18022013,2212.7,2212.4,3.2078]
[1741455614505,18.464,2212.9,2212.4,3.2078]
[1741455614702,3.2078,2213.1,2212.7,0.54246]
[1741455614908,3.2078,2213.1,2212.4,3.2078]
[1741455615409,0.54244,2212.9,2212.3,0.54255]
[1741455615608,2.91346,2212.8,2212.2,3.19989]
[1741455615812,0.54248,2212.7,2212.2,4.0177]
[1741455616011,5.5788,2212.8,2212.2,4.0177]
[1741455616311,6.12125,2212.8,2212.2,4.56028]
[1741455616607,5.5788,2212.8,2212.2,4.0177]
[1741455617003,0.54251,2212.6,2212.2,2.7517]
[1741455617209,5.5788,2212.8,2212.2,2.7517]
[1741455617606,0.54251,2212.6,2212.2,2.7517]
[1741455618011,0.54253,2212.5,2212.2,2.7517]
[1741455618205,2.371,2212.4,2212.1,0.00678549]
[1741455618404,5.56472013,2212.7,2212.1,0.00678549]
[1741455618405,2.371,2212.3,2212.1,0.00678549]
[1741455618707,2.371,2212.2,2212.1,0.00678549]
[1741455620513,2.91359,2212.2,2212.1,0.00678549]
[1741455621107,6.12139,2212.2,2212.1,0.00678549]
[1741455621604,5.5788,2212.2,2212.1,0.00678549]
[1741455621805,2.371,2212.2,2212.1,0.00678549]
[1741455622007,2.37,2212.2,2212.1,0.00678549]
[1741455623210,1.46988481,2212.5,2212.1,0.00678549]
[1741455623211,0.54254,2212.4,2212.1,0.00678549]
[1741455623411,2.91254,2212.4,2212.1,0.00678549]
[1741455623913,2.37,2212.4,2212.1,0.00678549]
[1741455624415,0.54259,2212.2,2212.1,0.00678549]
[1741455625102,1.26941286,2212.2,2212.1,0.00678549]
[1741455625308,2.19695826,2212.2,2212.1,0.00678549]
[1741455626100,2.19695826,2212.2,2210.8,2.985]
[1741455626101,5.65436826,2212.2,2211.2,3.2078]
[1741455626299,5.65436826,2212.2,2210.9,7.129]
[1741455626300,3.2078,2211.7,2210.9,7.129]
[1741455626514,0.54281,2211.4,2210.9,7.6719]
[1741455626712,0.54278,2211.5,2211.0,0.54287]
[1741455626911,0.5428,2211.4,2210.9,7.6719]
[1741455627107,0.54284,2211.2,2210.9,7.129]
[1741455627306,0.72760949,2211.3,2210.9,5.87208549]
[1741455627506,1.47088845,2211.3,2210.9,5.87208549]
[1741455628013,3.21458549,2211.4,2210.9,5.87208549]
[1741455628311,3.94205309,2211.4,2210.9,5.87208549]
[1741455628527,0.54287,2211.1,2210.9,1.30648549]
[1741455629410,2.37,2211.2,2210.9,1.30648549]
[1741455629411,3.29795231,2211.2,2210.9,1.30648549]
[1741455629606,3.84079231,2211.2,2210.9,1.30648549]
[1741455629808,3.29795231,2211.2,2210.9,1.30648549]
[1741455630012,2.37,2211.2,2210.9,1.30648549]
[1741455630212,2.91284,2211.2,2210.9,1.30648549]
[1741455630613,2.37,2211.2,2210.9,1.30648549]
[1741455630814,0.54288,2211.1,2210.9,1.30648549]
[1741455631416,0.54289,2211.0,2210.9,1.30648549]
[1741455631620,0.54288,2211.1,2210.9,1.30648549]
[1741455632019,2.37,2211.2,2210.9,1.30648549]
[1741455632217,0.54289,2211.0,2210.9,0.00678549]
[1741455632417,4.72311013,2211.0,2210.9,5.49e-06]
[1741455632718,9.45019092,2211.0,2210.9,5.49e-06]
[1741455632918,10.37760639,2211.0,2210.9,5.49e-06]
[1741455633310,10.37760639,2211.0,2209.8,3.2078]
[1741455633311,1.35741,2210.8,2209.8,3.2078]
[1741455633510,0.54312,2210.1,2209.7,1.3594]
[1741455633819,2.369,2210.1,2209.7,1.9026]
[1741455634120,2.369,2210.1,2209.7,1.90259]
[1741455634317,2.37578549,2210.1,2209.7,1.36618549]
[1741455634514,2.37578549,2210.1,2209.8,0.54318]
[1741455635117,2.37578549,2210.1,2209.7,1.90937549]
[1741455635921,2.37578549,2210.1,2209.7,1.36618549]
[1741455636122,2.37578549,2210.1,2209.7,1.90938549]
[1741455636424,2.37578549,2210.1,2209.7,1.36618549]
[1741455636923,2.91889549,2210.1,2209.7,1.36618549]
[1741455637318,2.37578549,2210.1,2209.7,1.36618549]
[1741455637724,2.37578549,2210.1,2209.7,0.00678549]
[1741455637923,0.54315,2210.0,2209.7,0.00678549]
[1741455638122,0.54318,2209.8,2209.7,0.00678549]
[1741455640919,3.73168549,2210.1,2209.7,0.00678549]
[1741455640920,0.00678549,2210.1,2209.7,0.00678549]
[1741455641125,0.00678549,2210.1,2209.8,0.54317]
[1741455641319,0.00678549,2210.1,2209.9,2.6504]
[1741455641518,0.54989549,2210.1,2209.9,2.6504]
[1741455641712,0.00678549,2210.1,2210.0,3.75093]
[1741455641913,2.369,2210.7,2210.0,3.2078]
[1741455642114,2.369,2210.7,2210.0,4.4983]
[1741455642323,0.543,2210.6,2210.1,0.5431]
[1741455642521,0.54301,2210.5,2210.0,5.04141]
[1741455642727,2.369,2210.7,2210.0,4.4983]
[1741455642927,2.369,2210.7,2210.1,0.5431]
[1741455643227,0.00678549,2210.6,2210.0,4.4983]
[1741455643532,0.00678549,2210.6,2210.2,0.54308]
[1741455644126,0.54977549,2210.6,2210.0,4.4983]
[1741455644326,0.00678549,2210.6,2210.1,0.54311]
[1741455644527,0.00678549,2210.6,2210.0,4.4983]
[1741455644721,0.54977549,2210.6,2210.0,4.4983]
[1741455645028,0.00678549,2210.6,2210.0,4.4983]
[1741455645329,0.00678549,2210.6,2210.0,5.04142]
[1741455645527,0.00678549,2210.6,2210.1,0.54311]
[1741455645928,0.00678549,2210.6,2210.0,4.4983]
[1741455646122,2.37578549,2210.6,2210.4,0.54302]
[1741455646321,2.37578549,2210.6,2210.5,1.82211]
[1741455647619,2.37578549,2210.6,2210.5,1.2791]
[1741455648515,2.37578549,2210.6,2210.4,1.3106]
[1741455648723,0.54302,2210.5,2210.3,3.2078]
[1741455648916,2.37578549,2210.6,2210.3,3.2078]
[1741455649327,2.37578549,2210.6,2210.3,3.75086]
[1741455649622,2.37578549,2210.6,2210.3,3.2078]
[1741455650022,2.37578549,2210.6,2210.3,4.4977]
[1741455650223,2.37578549,2210.6,2210.3,5.04076]
[1741455650423,2.37578549,2210.6,2210.3,4.4977]
[1741455650627,2.37578549,2210.6,2210.4,0.54302]
[1741455651035,2.37578549,2210.6,2210.3,1.2899]
[1741455651428,0.54302,2210.5,2210.3,1.2899]
[1741455651623,0.54305,2210.4,2210.1,1.3979]
[1741455651823,2.37578549,2210.6,2210.1,1.3979]
[1741455652222,0.54308,2210.2,2210.1,1.3979]
[1741455652434,2.91108,2210.2,2210.1,1.3979]
[1741455652636,2.368,2210.2,2210.1,1.94101]
[1741455654028,2.368,2210.2,2210.1,1.3979]
[1741455654432,0.00678549,2210.6,2210.1,1.3979]
[1741455654736,2.37478549,2210.6,2210.3,3.2078]
[1741455654936,2.37478549,2210.6,2210.3,3.75085]
[1741455655136,2.37478549,2210.6,2210.1,3.266]
[1741455655335,2.91777549,2210.6,2210.1,2.7229]
[1741455655529,2.37478549,2210.6,2210.2,0.54307]
[1741455655732,2.37478549,2210.6,2210.1,2.7229]
[1741455656037,2.37478549,2210.6,2210.3,3.2078]
[1741455656341,2.37478549,2210.6,2210.4,0.54303]
[1741455656531,2.37478549,2210.6,2210.4,1.86652]
[1741455657036,2.37478549,2210.6,2210.4,1.3235]
[1741455657532,2.37478549,2210.6,2210.1,3.266]
[1741455657735,2.37478549,2210.6,2210.1,4.5453]
[1741455658433,2.91777549,2210.6,2210.1,4.0022]
[1741455658633,0.54303,2210.5,2210.1,2.6772]
[1741455658836,0.54308,2210.2,2210.1,1.3979]
[1741455659140,2.91009,2210.2,2210.0,3.2078]
[1741455659338,2.367,2210.2,2210.0,3.2078]
[1741455659537,2.9101,2210.2,2210.0,3.2078]
[1741455659833,0.54311,2210.1,2210.0,3.2078]
[1741455660033,3.0964939,2210.2,2209.7,0.00678549]
[1741455660235,8.1494839,2210.2,2209.7,0.00678549]
[1741455660437,0.72978835,2210.1,2209.7,0.00678549]
[1741455660631,0.54318,2209.8,2209.7,0.00678549]
[1741455660836,2.91018,2209.8,2209.7,0.00678549]
[1741455661040,2.367,2209.8,2209.7,0.00678549]
[1741455661243,3.29785434,2209.8,2209.7,0.00678549]
[1741455661542,3.29785434,2209.8,2208.1,0.45167423]
[1741455661543,5.53839013,2209.5,2208.2,3.65947423]
[1741455661840,0.54354,2208.4,2208.0,3.56042963]
[1741455662044,3.7514,2208.1,2208.0,0.35262963]
[1741455662339,5.5748,2208.1,2208.0,0.35262963]
[1741455662731,5.5748,2208.1,2207.8,0.00678549]
[1741455663041,0.00678549,2208.3,2208.0,3.2078]
[1741455663235,0.00678549,2208.3,2207.9,0.54365]
[1741455663439,0.00678549,2208.3,2207.8,2.69808549]
[1741455663738,2.367,2209.1,2208.0,3.2078]
[1741455663942,2.367,2209.1,2208.5,3.7513]
[1741455664241,2.367,2209.1,2208.6,0.54348]
[1741455664444,18.474,2209.6,2208.9,0.54339]
[1741455664445,7.38802013,2209.5,2208.9,0.54339]
[1741455664643,0.00678549,2209.1,2209.0,0.54336]
[1741455664837,0.00678549,2209.1,2209.0,0.55014549]
[1741455665042,18.474,2209.6,2209.1,0.54333]
[1741455665240,18.474,2209.6,2209.0,0.00678549]
[1741455666144,19.01724,2209.6,2209.0,0.00678549]
[1741455666345,3.75109,2209.4,2209.0,0.00678549]
[1741455666646,2.91031,2209.3,2209.0,0.00678549]
[1741455667041,2.367,2209.3,2209.0,0.00678549]
[1741455667439,0.54334,2209.2,2209.0,0.00678549]
[1741455667639,2.367,2209.3,2209.0,0.00678549]
[1741455668047,2.367,2209.3,2209.0,0.55015549]
[1741455668448,2.367,2209.3,2209.1,0.54335]
[1741455668647,2.367,2209.3,2209.0,0.55015549]
[1741455668846,2.367,2209.3,2209.1,0.54335]
[1741455669046,2.367,2209.3,2209.2,0.54333]
[1741455669345,2.367,2209.3,2209.1,1.89033]
[1741455670252,2.367,2209.3,2209.0,0.00678549]
[1741455670646,2.367,2209.3,2209.0,0.55015549]
[1741455671449,18.474,2209.6,2209.1,3.2078]
[1741455671749,18.474,2209.6,2209.2,0.54331]
[1741455671750,20.841,2209.6,2209.2,0.54331]
[1741455672045,20.841,2209.6,2209.1,3.75114]
[1741455672348,20.841,2209.6,2209.1,3.2078]
[1741455672745,20.841,2209.6,2209.2,0.54332]
[1741455672946,20.841,2209.6,2209.1,3.2078]
[1741455673144,20.841,2209.6,2209.0,0.00678549]
[1741455673655,20.841,2209.6,2209.2,0.54332]
[1741455673844,20.841,2209.6,2209.3,0.5433]
[1741455674036,20.841,2209.6,2208.6,2.76068]
[1741455674037,3.2078,2209.4,2208.0,2.985]
[1741455674239,3.2078,2209.4,2207.7,5.7662]
[1741455674240,0.5436,2208.2,2207.7,5.7662]
[1741455674541,0.54367,2207.8,2207.4,3.2078]
[1741455674741,2.367,2207.9,2207.4,4.5746]
[1741455674949,2.367,2207.9,2207.7,3.2078]
[1741455675751,0.00678549,2208.0,2207.7,3.75149]
[1741455675946,0.00678549,2208.0,2207.8,0.54367]
[1741455676555,0.54342,2208.9,2208.2,0.54357]
[1741455676852,3.2078,2209.0,2208.4,3.2078]
[1741455677647,3.2078,2208.7,2208.3,1.345]
[1741455677847,3.2078,2208.7,2208.5,0.00678549]
[1741455678555,3.2078,2209.0,2208.5,0.00678549]
[1741455678751,3.7012,2209.1,2208.5,3.21458549]
[1741455679048,3.2078,2209.0,2208.5,0.00678549]
[1741455679440,0.54341,2208.9,2208.5,0.00678549]
[1741455679845,3.2078,2209.0,2208.5,0.00678549]
[1741455680045,3.75119,2209.0,2208.5,0.00678549]
[1741455680551,3.2078,2209.0,2208.5,0.00678549]
[1741455680847,3.2078,2209.0,2208.6,3.2078]
[1741455681046,2.366,2209.3,2209.0,0.54336]
[1741455681448,3.2078,2209.6,2209.1,0.54335]
[1741455681750,3.2078,2209.6,2209.2,3.75113]
[1741455682348,2.366,2209.7,2209.2,3.2078]
[1741455682548,2.366,2209.7,2209.2,3.75112]
[1741455682750,2.366,2209.7,2209.2,3.2078]
[1741455682953,2.366,2209.7,2209.3,0.5433]
[1741455683658,3.2078,2209.6,2209.0,2.65]
[1741455683852,0.54327,2209.5,2209.0,2.65]
[1741455684954,3.2078,2209.6,2209.0,2.65]
[1741455685454,0.54326,2209.5,2209.0,3.19338]
[1741455685651,0.54342,2208.9,2208.3,6.11734]
[1741455685857,0.54342,2208.9,2208.3,5.9394]
[1741455686051,1.3291,2209.1,2208.3,5.9394]
[1741455686252,1.3291,2209.1,2208.4,0.54351]
[1741455686453,0.5434,2209.0,2208.4,0.54351]
[1741455686647,0.5434,2209.0,2208.5,0.55028549]
[1741455687359,0.5434,2209.0,2208.5,0.00678549]
[1741455687662,1.3291,2209.1,2208.5,0.00678549]
[1741455687663,0.54346,2208.7,2208.5,0.00678549]
[1741455687850,2.366,2208.8,2208.5,0.00678549]
[1741455689257,2.90944,2208.8,2208.5,0.00678549]
[1741455689852,3.75128,2208.6,2208.5,0.00678549]
[1741455697264,4.68122822,2208.6,2208.5,0.00678549]
[1741455697966,3.75128,2208.6,2208.5,0.00678549]
[1741455698367,6.11628,2208.6,2208.5,0.00678549]
[1741455701065,0.5437,2207.7,2207.6,1.3356]
[1741455701258,5.5728,2207.7,2207.6,1.3356]
[1741455701564,2.365,2207.7,2207.6,1.87932]
[1741455701968,5.5728,2208.0,2207.6,4.054]
[1741455702173,0.00678549,2207.9,2207.6,4.054]
[1741455702771,0.00678549,2207.9,2207.7,0.54368]
[1741455702969,0.00678549,2207.9,2207.6,4.054]
[1741455702970,0.00678549,2207.9,2207.8,0.54367]
[1741455703270,0.00678549,2207.9,2207.7,0.54368]
[1741455703659,0.00678549,2207.9,2207.8,3.75147]
[1741455703865,0.00678549,2207.9,2207.8,3.2078]
[1741455704059,0.00678549,2207.9,2207.8,3.75147]
[1741455704872,2.365,2208.3,2207.9,0.54364]
[1741455705073,2.365,2208.3,2207.8,3.75146]
[1741455705272,2.90856,2208.3,2207.8,3.75146]
[1741455705868,2.365,2208.3,2207.8,3.75146]
[1741455706266,2.90855,2208.3,2207.8,3.75146]
[1741455706671,2.365,2208.3,2207.9,0.54365]
[1741455706873,2.90856,2208.3,2207.8,3.75146]
[1741455707967,2.90856,2208.3,2207.8,3.2078]
[1741455707968,2.365,2208.3,2207.8,3.2078]
[1741455708176,2.365,2208.3,2207.9,0.54364]
[1741455708372,2.90855,2208.3,2207.8,3.75146]
[1741455708868,2.365,2208.3,2207.8,3.2078]
[1741455709075,2.90857,2208.3,2207.8,3.2078]
[1741455709268,2.90857,2208.3,2207.8,3.75147]
[1741455709469,0.54359,2208.2,2207.8,3.2078]
[1741455709770,2.365,2208.3,2207.8,3.2078]
[1741455709771,0.54365,2207.9,2207.8,3.2078]
[1741455709973,0.54369,2207.8,2207.6,2.6937]
[1741455710772,2.90766,2207.9,2207.6,2.6937]
[1741455711866,2.90766,2207.9,2207.8,0.54367]
[1741455711867,2.364,2207.9,2207.8,0.54367]
[1741455712074,2.364,2207.9,2207.7,0.54369]
[1741455712468,2.364,2207.9,2207.6,2.6937]
[1741455712669,2.364,2207.9,2207.7,0.54369]
[1741455712870,2.364,2207.9,2207.6,2.6937]
[1741455713173,10.29558013,2208.3,2207.8,0.54367]
[1741455713376,6.11536,2208.3,2207.8,0.54367]
[1741455713569,6.11536,2208.3,2207.9,1.3889]
[1741455713970,2.364,2208.3,2207.9,1.3889]
[1741455714165,2.364,2208.3,2207.9,1.93253]
[1741455714868,2.364,2208.3,2207.9,1.3889]
[1741455715577,2.90756,2208.3,2207.9,1.3889]
[1741455716076,2.90756,2208.3,2207.8,3.2078]
[1741455716077,2.364,2208.3,2207.8,3.2078]
[1741455716277,0.54361,2208.1,2207.8,3.2078]
[1741455716779,0.9328131,2208.2,2207.8,3.2078]
[1741455717371,0.54359,2208.2,2207.8,3.2078]
[1741455717681,0.73853385,2208.2,2207.8,3.2078]
[1741455717983,0.54361,2208.1,2207.8,3.2078]
[1741455718175,0.5436,2208.1,2207.8,3.2078]
[1741455718473,1.67236235,2208.2,2207.6,2.6937]
[1741455718675,3.2078,2208.0,2207.4,0.00678549]
[1741455718877,0.54371,2207.7,2207.4,0.00678549]
[1741455719072,0.54372,2207.6,2207.4,0.00678549]
[1741455719277,0.5437,2207.7,2207.4,0.00678549]
[1741455719477,1.67236235,2207.8,2207.4,0.00678549]
[1741455719972,0.93382556,2207.8,2207.5,0.54374]
[1741455720172,6.54322013,2207.9,2207.4,1.35088549]
[1741455720566,0.54369,2207.8,2207.4,1.35088549]
[1741455720771,0.5437,2207.7,2207.4,1.35088549]
[1741455721079,0.54369,2207.8,2207.4,1.35088549]
[1741455721276,0.54371,2207.7,2207.4,1.35088549]
[1741455721581,7.08687013,2207.9,2207.4,1.89464549]
[1741455722282,0.54369,2207.8,2207.4,1.35088549]
[1741455722578,0.54372,2207.7,2207.4,1.35088549]
[1741455722881,0.54373,2207.6,2207.4,0.00678549]
[1741455723377,0.93387049,2207.8,2207.4,0.00678549]
[1741455723674,0.54375,2207.5,2207.4,0.00678549]
[1741455724676,0.54373,2207.6,2207.4,0.00678549]
[1741455725277,3.2078,2207.7,2207.4,0.00678549]
[1741455725477,0.54373,2207.6,2207.4,0.00678549]
[1741455725680,3.75151,2207.7,2207.4,0.00678549]
[1741455725978,0.54374,2207.6,2207.4,0.00678549]
[1741455726185,0.54372,2207.6,2207.4,0.00678549]
[1741455726683,0.54375,2207.5,2207.4,0.00678549]
[1741455727078,0.54374,2207.6,2207.4,0.00678549]
[1741455727683,0.54375,2207.5,2207.4,0.00678549]
[1741455727981,3.2078,2207.7,2207.4,0.00678549]
[1741455728179,0.54375,2207.5,2207.4,0.00678549]
[1741455728685,2.90575,2207.5,2207.4,5.49e-06]
[1741455728983,6.90575,2207.5,2207.4,5.49e-06]
[1741455729283,3.64400842,2207.5,2207.4,5.49e-06]
[1741455729481,4.57723524,2207.5,2207.4,5.49e-06]
[1741455730076,3.29522682,2207.5,2207.4,5.49e-06]
[1741455730280,1.47697682,2207.5,2207.4,5.49e-06]
[1741455730583,2.90575,2207.5,2207.4,5.49e-06]
[1741455731181,0.54375,2207.5,2207.4,5.49e-06]
[1741455731485,2.90575,2207.5,2207.4,5.49e-06]
[1741455731681,3.64365261,2207.5,2207.4,5.49e-06]
[1741455732185,12.75646269,2207.5,2207.4,5.49e-06]
[1741455732586,8.75646269,2207.5,2207.4,5.49e-06]
[1741455732780,8.01856008,2207.5,2207.4,5.49e-06]
[1741455733085,7.08597013,2207.5,2207.4,5.49e-06]
[1741455734883,7.08597013,2207.5,2207.4,0.54377549]
[1741455734884,4.18022013,2207.5,2207.4,0.54377549]
[1741455735084,3.21458,2207.7,2207.4,5.49e-06]
[1741455735286,0.54375,2207.5,2207.4,5.49e-06]
[1741455735483,2.90575,2207.5,2207.4,5.49e-06]
[1741455736085,3.83763573,2207.5,2207.4,5.49e-06]
[1741455736389,4.57492049,2207.5,2207.4,5.49e-06]
[1741455736591,3.83763573,2207.5,2207.4,5.49e-06]
[1741455737087,8.75521538,2207.5,2207.4,5.49e-06]
[1741455739295,15.55453644,2207.5,2206.2,0.36702796]
[1741455739587,0.54392,2206.8,2206.3,1.2656]
[1741455739788,2.361,2206.7,2206.3,1.2656]
[1741455740388,0.54386,2207.1,2206.5,3.2078]
[1741455740591,2.361,2207.1,2206.7,0.54393]
[1741455740795,2.361,2207.1,2206.8,1.3681]
[1741455740990,2.361,2207.1,2206.8,3.23111]
[1741455741198,3.2078,2207.3,2206.9,3.2078]
[1741455741391,3.2078,2207.3,2207.0,1.337]
[1741455741586,2.361,2207.4,2207.0,1.337]
[1741455741786,2.361,2207.5,2207.0,1.337]
[1741455742599,2.361,2207.5,2207.1,0.54385]
[1741455742795,2.361,2207.5,2207.2,0.54381]
[1741455743099,2.361,2207.5,2207.3,1.33]
[1741455743485,2.361,2207.5,2207.4,1.3144]
[1741455743685,2.90475,2207.5,2207.4,4.5222]
[1741455743897,0.54385,2207.2,2206.6,3.75176]
[1741455744087,3.75161,2207.3,2206.7,4.48314]
[1741455744292,3.2078,2207.3,2206.8,0.54391]
[1741455744598,0.54384,2207.2,2206.7,3.9392]
[1741455744796,3.75161,2207.3,2206.7,4.48313]
[1741455744996,3.2078,2207.3,2206.8,0.54392]
[1741455745500,3.2078,2207.3,2206.7,3.9392]
[1741455745798,5.5688,2207.3,2206.9,0.54389]
[1741455746600,2.361,2207.3,2206.9,3.2078]
[1741455746801,4.18022013,2207.5,2206.9,3.2078]
[1741455747101,3.2078,2207.6,2207.1,0.54383]
[1741455747102,2.90473,2207.6,2207.1,0.54383]
[1741455747403,2.361,2207.6,2207.2,3.24022]
[1741455748105,0.00678,2207.7,2207.5,3.2078]
[1741455748302,24.0628,2207.9,2207.6,0.54372]
[1741455748303,5.5678,2207.9,2207.6,0.54372]
[1741455748610,5.5678,2207.9,2207.7,0.5437]
[1741455748806,5.5678,2207.9,2207.7,1.3088]
[1741455749100,3.2078,2207.9,2207.7,1.8525]
[1741455749303,2.36,2208.2,2207.8,3.2078]
[1741455749494,2.36,2208.2,2207.8,3.75146]
[1741455749690,2.36,2208.2,2207.8,3.2078]
[1741455749902,2.36,2208.2,2207.9,1.82565]
[1741455750104,2.36,2208.2,2207.9,1.282]
[1741455750504,2.36,2208.2,2207.9,1.82565]
[1741455750999,0.54354,2208.4,2207.9,1.82565]
[1741455751000,4.18022013,2208.5,2208.1,3.7514]
[1741455751202,20.859,2208.7,2208.4,0.54351]
[1741455751497,2.36,2208.7,2208.5,1.3419]
[1741455752395,0.54354,2208.4,2208.2,1.3927]
[1741455752596,0.54355,2208.3,2208.2,1.3927]
[1741455752797,3.2078,2208.6,2208.2,1.3927]
[1741455753294,0.54354,2208.4,2208.2,1.3927]
[1741455753697,5.9772,2208.6,2208.2,1.3927]
[1741455753903,0.54352,2208.5,2208.2,1.3927]
[1741455754707,0.54351,2208.5,2208.2,1.3927]
[1741455755406,5.9772,2208.6,2208.2,1.3927]
[1741455755600,0.54353,2208.4,2208.2,1.3927]
[1741455755802,0.5436,2208.1,2207.6,5.57458549]
[1741455756001,3.2078,2208.3,2207.7,2.5606]
[1741455756307,3.75137,2208.3,2207.8,0.54367]
[1741455757504,0.54357,2208.3,2207.8,0.54365]
[1741455757706,2.90257,2208.3,2207.8,0.54365]
[1741455759105,0.54359,2208.2,2207.7,3.10429]
[1741455760619,5.5668,2208.3,2207.9,0.54365]
[1741455760814,5.5668,2208.3,2207.7,2.5606]
[1741455761020,2.90256,2208.3,2207.8,0.54366]
[1741455762414,2.90256,2208.3,2207.7,2.5606]
[1741455762415,0.54351,2208.5,2207.9,3.2078]
[1741455762620,3.2078,2208.6,2207.9,3.2078]
[1741455762919,3.2078,2208.6,2208.4,0.54352]
[1741455763117,3.2078,2208.6,2208.3,3.2078]
[1741455763118,3.2078,2208.6,2208.5,2.7218]
[1741455764927,3.2078,2208.6,2208.5,1.3824]
[1741455766033,3.2078,2208.6,2208.5,1.9259]
[1741455767129,0.54338,2209.1,2208.7,0.54344]
[1741455767130,2.357,2209.1,2208.7,0.54344]
[1741455767531,2.357,2209.1,2208.6,2.7212]
[1741455767734,2.357,2209.1,2208.7,0.54344]
[1741455768024,5.0895,2209.2,2208.8,0.54342]
[1741455768426,5.0895,2209.2,2208.9,0.5434]
[1741455768632,2.357,2209.2,2208.8,0.00678549]
[1741455768934,2.357,2209.2,2208.8,0.55020549]
[1741455769530,2.357,2209.2,2208.9,0.5434]
[1741455770035,2.357,2209.2,2208.8,0.00678549]
[1741455770325,0.54336,2209.1,2208.8,0.00678549]
[1741455770527,0.5434,2208.9,2208.8,0.00678549]
[1741455770726,0.5435,2208.5,2208.0,2.5876]
[1741455770935,0.5435,2208.6,2208.0,3.1312]
[1741455771430,0.5435,2208.6,2208.1,0.54358]
[1741455771619,0.54348,2208.6,2208.1,0.54358]
[1741455771825,5.5638,2208.7,2208.1,0.00678549]
[1741455772027,0.54351,2208.5,2208.1,0.00678549]
[1741455772729,0.54358,2208.2,2208.1,0.00678549]
[1741455773930,2.356,2208.3,2208.1,0.00678549]
[1741455774421,0.54358,2208.2,2208.1,0.00678549]
[1741455782833,2.89956,2208.3,2208.1,0.00678549]
[1741455783035,0.54358,2208.2,2208.1,0.00678549]
[1741455785342,10.08002013,2208.4,2208.1,0.00678549]
[1741455785542,2.355,2208.3,2208.1,0.00678549]
[1741455785736,7.93157013,2208.4,2208.1,0.00678549]
[1741455785737,3.75135,2208.4,2208.1,0.00678549]
[1741455785938,4.18022013,2208.6,2208.1,0.00678549]
[1741455786140,0.54358,2208.2,2208.1,0.00678549]
[1741455786337,3.75138,2208.2,2208.1,0.00678549]
[1741455787046,3.75138,2208.2,2207.5,3.2078]
[1741455787047,0.54372,2207.6,2207.5,3.2078]
[1741455787241,1.35903,2208.1,2207.0,5.12416]
[1741455787242,0.54376,2207.5,2207.0,5.12416]
[1741455787544,0.54391,2206.9,2206.4,3.75182]
[1741455787749,2.354,2207.0,2206.3,1.3741]
[1741455788049,2.354,2206.9,2206.3,1.3741]
[1741455788347,0.54394,2206.8,2206.4,3.21458549]
[1741455788541,2.36078549,2206.9,2206.4,3.21458549]
[1741455788942,2.36078549,2206.9,2206.6,0.54397]
[1741455789137,0.00678549,2206.9,2206.7,3.2078]
[1741455789350,2.354,2207.2,2206.8,1.2721]
[1741455789840,2.354,2207.2,2206.8,1.81601]
[1741455790040,3.75159,2207.4,2206.8,1.81601]
[1741455790245,2.354,2207.4,2206.9,0.54388]
[1741455790440,0.00678549,2207.3,2206.8,4.4799]
[1741455790637,0.00678549,2207.3,2206.9,0.5439]
[1741455790845,0.00678549,2207.3,2206.8,5.02381]